[Event "Titled Tuesday Blitz July 26 Late 2022"]
[White "Andreikin, Dmitry"]
[Black "Pranav, V"]
[WhiteFideId "4158814"]
[BlackFideId "25060783"]
[WhiteElo "2736"]
[BlackElo "2380"]
[Result "1-0"]
[Round "08"]
[TimeControl "180+1"]
[Date "2022.07.26"]
[WhiteClock "0:02:13"]
[BlackClock "0:00:42"]

1. d4 {[%clk 0:03:00]}  Nf6 {[%clk 0:03:00]} 2. c4 {[%clk 0:03:01]}  e6 {[%clk 0:03:00]} 3. Nf3 {[%clk 0:03:01]}  h6 {[%clk 0:03:00]} 4. Nc3 {[%clk 0:02:57]}  Bb4 {[%clk 0:03:00]} 5. Qc2 {[%clk 0:02:55]}  d6 {[%clk 0:03:00]} 6. a3 {[%clk 0:02:52]}  Bxc3+ {[%clk 0:03:00]} 7. Qxc3 {[%clk 0:02:53]}  O-O {[%clk 0:03:00]} 8. b4 {[%clk 0:02:53]}  b6 {[%clk 0:03:00]} 9. Bb2 {[%clk 0:02:53]}  Bb7 {[%clk 0:03:00]} 10. e3 {[%clk 0:02:54]}  Nbd7 {[%clk 0:03:00]} 11. Be2 {[%clk 0:02:54]}  a5 {[%clk 0:02:58]} 12. O-O {[%clk 0:02:54]}  Ne4 {[%clk 0:02:57]} 13. Qc2 {[%clk 0:02:53]}  f5 {[%clk 0:02:57]} 14. d5 {[%clk 0:02:52]}  e5 {[%clk 0:02:46]} 15. Bd3 {[%clk 0:02:51]}  Ndf6 {[%clk 0:01:52]} 16. Nh4 {[%clk 0:02:45]}  axb4 {[%clk 0:01:40]} 17. axb4 {[%clk 0:02:41]}  Rxa1 {[%clk 0:01:41]} 18. Bxa1 {[%clk 0:02:42]}  Nxd5 {[%clk 0:01:32]} 19. cxd5 {[%clk 0:02:32]}  Qxh4 {[%clk 0:01:31]} 20. f3 {[%clk 0:02:28]}  Nf6 {[%clk 0:01:26]} 21. Qxc7 {[%clk 0:02:27]}  Bxd5 {[%clk 0:01:08]} 22. Qxd6 {[%clk 0:02:27]}  Bc4 {[%clk 0:00:45]} 23. g3 {[%clk 0:02:20]}  Ne8 {[%clk 0:00:42]} 24. Qxe5 {[%clk 0:02:13]} 1-0


[Site "https://www.chess.com"]

[Event "Titled Tuesday Blitz July 26 Late 2022"]
[White "Aravindh, Chithambaram VR."]
[Black "Vasquez Schroeder, Rodrigo"]
[WhiteFideId "5072786"]
[BlackFideId "3400042"]
[WhiteElo "2577"]
[BlackElo "2567"]
[Result "0-1"]
[Round "08"]
[TimeControl "180+1"]
[Date "2022.07.26"]
[WhiteClock "0:00:01"]
[BlackClock "0:00:20"]

1. b3 {[%clk 0:03:00]}  b6 {[%clk 0:02:51]} 2. Bb2 {[%clk 0:03:01]}  Bb7 {[%clk 0:02:51]} 3. Nf3 {[%clk 0:02:59]}  Nf6 {[%clk 0:02:51]} 4. c4 {[%clk 0:02:57]}  c5 {[%clk 0:02:51]} 5. e3 {[%clk 0:02:52]}  e6 {[%clk 0:02:50]} 6. Rg1 {[%clk 0:02:49]}  g6 {[%clk 0:02:32]} 7. g4 {[%clk 0:02:43]}  Bg7 {[%clk 0:02:32]} 8. h4 {[%clk 0:02:41]}  Nc6 {[%clk 0:02:24]} 9. h5 {[%clk 0:02:40]}  Nxh5 {[%clk 0:02:22]} 10. d4 {[%clk 0:02:27]}  Nf6 {[%clk 0:02:16]} 11. Nc3 {[%clk 0:02:23]}  cxd4 {[%clk 0:02:14]} 12. exd4 {[%clk 0:02:05]}  d5 {[%clk 0:02:11]} 13. Ba3 {[%clk 0:02:01]}  Ne4 {[%clk 0:02:04]} 14. cxd5 {[%clk 0:01:45]}  exd5 {[%clk 0:01:36]} 15. Qd3 {[%clk 0:01:42]}  Nxc3 {[%clk 0:01:32]} 16. Qxc3 {[%clk 0:01:43]}  Qd7 {[%clk 0:01:31]} 17. Bb5 {[%clk 0:01:37]}  a6 {[%clk 0:01:28]} 18. Bf1 {[%clk 0:01:19]}  O-O-O {[%clk 0:01:24]} 19. Ne5 {[%clk 0:01:09]}  Rhe8 {[%clk 0:01:20]} 20. O-O-O {[%clk 0:00:57]}  Bxe5 {[%clk 0:01:16]} 21. dxe5 {[%clk 0:00:58]}  d4 {[%clk 0:01:16]} 22. Qg3 {[%clk 0:00:44]}  Rxe5 {[%clk 0:01:02]} 23. Bg2 {[%clk 0:00:30]}  Ra5 {[%clk 0:00:58]} 24. Kb2 {[%clk 0:00:23]}  Qc7 {[%clk 0:00:45]} 25. Rc1 {[%clk 0:00:14]}  Qxg3 {[%clk 0:00:43]} 26. fxg3 {[%clk 0:00:15]}  Kc7 {[%clk 0:00:36]} 27. Rgf1 {[%clk 0:00:13]}  f5 {[%clk 0:00:33]} 28. Rh1 {[%clk 0:00:04]}  fxg4 {[%clk 0:00:24]} 29. Rxh7+ {[%clk 0:00:04]}  Rd7 {[%clk 0:00:25]} 30. Rh6 {[%clk 0:00:04]}  Re5 {[%clk 0:00:22]} 31. Bf1 {[%clk 0:00:01]}  d3 {[%clk 0:00:21]} 32. Rd1 {[%clk 0:00:01]}  Rf5 {[%clk 0:00:20]} 0-1


[Site "https://www.chess.com"]

[Event "Titled Tuesday Blitz July 26 Late 2022"]
[White "Arencibia Monduy, Antonio"]
[Black "Stalri"]
[WhiteFideId "3507939"]
[WhiteElo "2489"]
[BlackElo "2353"]
[Result "1-0"]
[Round "08"]
[TimeControl "180+1"]
[Date "2022.07.27"]
[WhiteClock "0:00:02"]
[BlackClock "0:00:24"]

1. e4 {[%clk 0:03:00]}  c5 {[%clk 0:02:52]} 2. Nf3 {[%clk 0:02:59]}  d6 {[%clk 0:02:50]} 3. c3 {[%clk 0:02:59]}  Nf6 {[%clk 0:02:49]} 4. Bd3 {[%clk 0:02:58]}  Nc6 {[%clk 0:02:48]} 5. h3 {[%clk 0:02:57]}  e5 {[%clk 0:02:46]} 6. O-O {[%clk 0:02:56]}  Be7 {[%clk 0:02:45]} 7. Bc2 {[%clk 0:02:57]}  Be6 {[%clk 0:02:45]} 8. d4 {[%clk 0:02:51]}  cxd4 {[%clk 0:02:45]} 9. cxd4 {[%clk 0:02:51]}  exd4 {[%clk 0:02:44]} 10. Nxd4 {[%clk 0:02:51]}  Nxd4 {[%clk 0:02:44]} 11. Qxd4 {[%clk 0:02:51]}  d5 {[%clk 0:02:45]} 12. Ba4+ {[%clk 0:02:44]}  Bd7 {[%clk 0:02:37]} 13. e5 {[%clk 0:02:28]}  Ne4 {[%clk 0:02:09]} 14. Qxd5 {[%clk 0:01:40]}  Bxa4 {[%clk 0:02:08]} 15. Qxe4 {[%clk 0:01:40]}  Bc6 {[%clk 0:02:07]} 16. Qg4 {[%clk 0:01:39]}  Qa5 {[%clk 0:01:59]} 17. Nc3 {[%clk 0:01:20]}  h5 {[%clk 0:01:53]} 18. Qc4 {[%clk 0:00:50]}  Rh6 {[%clk 0:01:43]} 19. Bxh6 {[%clk 0:00:49]}  gxh6 {[%clk 0:01:40]} 20. Rad1 {[%clk 0:00:45]}  Kf8 {[%clk 0:01:36]} 21. Rfe1 {[%clk 0:00:39]}  Rc8 {[%clk 0:01:26]} 22. Qf4 {[%clk 0:00:37]}  Bg5 {[%clk 0:01:13]} 23. Qf5 {[%clk 0:00:37]}  Re8 {[%clk 0:01:13]} 24. Qh7 {[%clk 0:00:35]}  Re6 {[%clk 0:01:04]} 25. Qh8+ {[%clk 0:00:29]}  Ke7 {[%clk 0:01:04]} 26. Qb8 {[%clk 0:00:21]}  Rg6 {[%clk 0:01:02]} 27. Rd6 {[%clk 0:00:15]}  Rg7 {[%clk 0:00:51]} 28. Red1 {[%clk 0:00:09]}  Bd2 {[%clk 0:00:48]} 29. Rxc6 {[%clk 0:00:08]}  bxc6 {[%clk 0:00:43]} 30. Rxd2 {[%clk 0:00:08]}  Ke6 {[%clk 0:00:42]} 31. Qe8+ {[%clk 0:00:07]}  Kf5 {[%clk 0:00:42]} 32. Qc8+ {[%clk 0:00:04]}  Kg6 {[%clk 0:00:42]} 33. e6 {[%clk 0:00:03]}  fxe6 {[%clk 0:00:36]} 34. Qxe6+ {[%clk 0:00:02]}  Kh7 {[%clk 0:00:37]} 35. Qe3 {[%clk 0:00:03]}  c5 {[%clk 0:00:34]} 36. Qd3+ {[%clk 0:00:03]}  Rg6 {[%clk 0:00:32]} 37. Re2 {[%clk 0:00:03]}  Qc7 {[%clk 0:00:31]} 38. Qe4 {[%clk 0:00:03]}  Qb6 {[%clk 0:00:25]} 39. Qe7+ {[%clk 0:00:03]}  Rg7 {[%clk 0:00:25]} 40. Qe4+ {[%clk 0:00:03]}  Kh8 {[%clk 0:00:24]} 41. Nd5 {[%clk 0:00:03]}  Qd6 {[%clk 0:00:22]} 42. Qe8+ {[%clk 0:00:03]}  Kh7 {[%clk 0:00:22]} 43. Qe5 {[%clk 0:00:04]}  Qg6 {[%clk 0:00:21]} 44. Qe4 {[%clk 0:00:03]}  Qxe4 {[%clk 0:00:20]} 45. Rxe4 {[%clk 0:00:04]}  Kg8 {[%clk 0:00:20]} 46. Re5 {[%clk 0:00:03]}  c4 {[%clk 0:00:19]} 47. Rxh5 {[%clk 0:00:03]}  Rb7 {[%clk 0:00:18]} 48. Nc3 {[%clk 0:00:03]}  Rxb2 {[%clk 0:00:18]} 49. Rc5 {[%clk 0:00:03]}  Rc2 {[%clk 0:00:17]} 50. Rxc4 {[%clk 0:00:04]}  Kf7 {[%clk 0:00:18]} 51. Kh2 {[%clk 0:00:03]}  Rc1 {[%clk 0:00:18]} 52. Kg3 {[%clk 0:00:03]}  Rc2 {[%clk 0:00:19]} 53. f3 {[%clk 0:00:03]}  Ke6 {[%clk 0:00:20]} 54. Re4+ {[%clk 0:00:02]}  Kf7 {[%clk 0:00:19]} 55. Nb5 {[%clk 0:00:02]}  Rxa2 {[%clk 0:00:19]} 56. Nd6+ {[%clk 0:00:03]}  Kf6 {[%clk 0:00:19]} 57. Nc4 {[%clk 0:00:02]}  a6 {[%clk 0:00:19]} 58. Ne3 {[%clk 0:00:02]}  Kg5 {[%clk 0:00:19]} 59. h4+ {[%clk 0:00:02]}  Kh5 {[%clk 0:00:19]} 60. Re5+ {[%clk 0:00:02]}  Kg6 {[%clk 0:00:19]} 61. h5+ {[%clk 0:00:03]}  Kh7 {[%clk 0:00:19]} 62. Re7+ {[%clk 0:00:03]}  Kg8 {[%clk 0:00:19]} 63. Nf5 {[%clk 0:00:04]}  Ra5 {[%clk 0:00:18]} 64. Nxh6+ {[%clk 0:00:04]}  Kh8 {[%clk 0:00:18]} 65. Nf7+ {[%clk 0:00:03]}  Kg8 {[%clk 0:00:18]} 66. Ne5 {[%clk 0:00:04]}  Rd5 {[%clk 0:00:18]} 67. f4 {[%clk 0:00:04]}  a5 {[%clk 0:00:18]} 68. h6 {[%clk 0:00:05]}  Rd6 {[%clk 0:00:17]} 69. h7+ {[%clk 0:00:05]}  Kh8 {[%clk 0:00:17]} 70. Nf7+ {[%clk 0:00:04]}  Kxh7 {[%clk 0:00:17]} 71. Nxd6+ {[%clk 0:00:05]}  Kh6 {[%clk 0:00:18]} 72. Re5 {[%clk 0:00:05]}  Kg6 {[%clk 0:00:18]} 73. Rxa5 {[%clk 0:00:05]}  Kf6 {[%clk 0:00:18]} 74. Ne4+ {[%clk 0:00:05]}  Ke6 {[%clk 0:00:19]} 75. Re5+ {[%clk 0:00:05]}  Kf7 {[%clk 0:00:19]} 76. Kg4 {[%clk 0:00:05]}  Kg7 {[%clk 0:00:20]} 77. Kf5 {[%clk 0:00:05]}  Kh7 {[%clk 0:00:21]} 78. Kf6 {[%clk 0:00:05]}  Kg8 {[%clk 0:00:22]} 79. Re7 {[%clk 0:00:02]}  Kh8 {[%clk 0:00:23]} 80. Kg6 {[%clk 0:00:02]}  Kg8 {[%clk 0:00:24]} 81. Re8# {[%clk 0:00:02]} 1-0


[Site "https://www.chess.com"]

[Event "Titled Tuesday Blitz July 26 Late 2022"]
[White "Baches Garcia, Guillermo"]
[Black "Yuan, Qingyu"]
[WhiteFideId "2209764"]
[BlackFideId "8609772"]
[WhiteElo "2533"]
[BlackElo "2359"]
[Result "0-1"]
[Round "08"]
[TimeControl "180+1"]
[Date "2022.07.26"]
[WhiteClock "0:00:02"]
[BlackClock "0:00:01"]

1. e4 {[%clk 0:03:00]}  c6 {[%clk 0:03:00]} 2. d4 {[%clk 0:02:58]}  d5 {[%clk 0:03:00]} 3. exd5 {[%clk 0:02:59]}  cxd5 {[%clk 0:03:00]} 4. Bd3 {[%clk 0:03:00]}  Nc6 {[%clk 0:03:01]} 5. c3 {[%clk 0:03:00]}  Nf6 {[%clk 0:03:01]} 6. h3 {[%clk 0:02:59]}  e5 {[%clk 0:03:01]} 7. dxe5 {[%clk 0:02:59]}  Nxe5 {[%clk 0:03:01]} 8. Nf3 {[%clk 0:02:59]}  Nxd3+ {[%clk 0:03:01]} 9. Qxd3 {[%clk 0:02:59]}  Bd6 {[%clk 0:03:02]} 10. O-O {[%clk 0:02:59]}  O-O {[%clk 0:03:02]} 11. Be3 {[%clk 0:02:58]}  h6 {[%clk 0:02:56]} 12. Nbd2 {[%clk 0:02:58]}  Re8 {[%clk 0:02:49]} 13. Rfe1 {[%clk 0:02:58]}  Bd7 {[%clk 0:02:47]} 14. Rad1 {[%clk 0:02:56]}  Qa5 {[%clk 0:02:46]} 15. a3 {[%clk 0:02:50]}  Ba4 {[%clk 0:02:38]} 16. Rc1 {[%clk 0:02:32]}  Bb5 {[%clk 0:02:38]} 17. Qc2 {[%clk 0:02:29]}  Ne4 {[%clk 0:02:30]} 18. Nd4 {[%clk 0:02:22]}  Bd7 {[%clk 0:02:18]} 19. N2f3 {[%clk 0:02:07]}  Rac8 {[%clk 0:02:16]} 20. Qe2 {[%clk 0:02:01]}  Bb8 {[%clk 0:02:15]} 21. Qd3 {[%clk 0:01:47]}  a6 {[%clk 0:02:11]} 22. Rcd1 {[%clk 0:01:43]}  Qc7 {[%clk 0:02:05]} 23. Ne2 {[%clk 0:01:30]}  Bb5 {[%clk 0:01:31]} 24. Qd4 {[%clk 0:01:24]}  Bxe2 {[%clk 0:01:00]} 25. Rxe2 {[%clk 0:01:24]}  Nf6 {[%clk 0:01:00]} 26. Rde1 {[%clk 0:01:13]}  Re4 {[%clk 0:00:58]} 27. Qb6 {[%clk 0:01:07]}  Qe7 {[%clk 0:00:52]} 28. Nd4 {[%clk 0:01:00]}  Re8 {[%clk 0:00:47]} 29. Nf3 {[%clk 0:00:39]}  Bf4 {[%clk 0:00:44]} 30. Nd2 {[%clk 0:00:27]}  Re6 {[%clk 0:00:26]} 31. Qd4 {[%clk 0:00:27]}  Be5 {[%clk 0:00:24]} 32. Qb4 {[%clk 0:00:27]}  Qc7 {[%clk 0:00:23]} 33. Nf3 {[%clk 0:00:22]}  Bf4 {[%clk 0:00:21]} 34. Nd4 {[%clk 0:00:20]}  Re4 {[%clk 0:00:12]} 35. Bxf4 {[%clk 0:00:18]}  Qxf4 {[%clk 0:00:12]} 36. Rxe4 {[%clk 0:00:16]}  Rxe4 {[%clk 0:00:12]} 37. Rf1 {[%clk 0:00:11]}  Qc7 {[%clk 0:00:11]} 38. Qb3 {[%clk 0:00:09]}  b5 {[%clk 0:00:07]} 39. Qc2 {[%clk 0:00:09]}  Qc4 {[%clk 0:00:07]} 40. Qd2 {[%clk 0:00:09]}  Nd7 {[%clk 0:00:07]} 41. Re1 {[%clk 0:00:08]}  Ne5 {[%clk 0:00:07]} 42. Rxe4 {[%clk 0:00:08]}  dxe4 {[%clk 0:00:07]} 43. Nf5 {[%clk 0:00:08]}  Qd3 {[%clk 0:00:07]} 44. Qf4 {[%clk 0:00:06]}  Ng6 {[%clk 0:00:06]} 45. Qb8+ {[%clk 0:00:04]}  Kh7 {[%clk 0:00:07]} 46. Qc8 {[%clk 0:00:03]}  Qd5 {[%clk 0:00:03]} 47. Ne3 {[%clk 0:00:02]}  Qb3 {[%clk 0:00:03]} 48. Qf5 {[%clk 0:00:02]}  Qa4 {[%clk 0:00:01]} 49. Qxf7 {[%clk 0:00:02]}  Qb3 {[%clk 0:00:01]} 0-1


[Site "https://www.chess.com"]

[Event "Titled Tuesday Blitz July 26 Late 2022"]
[White "Blanco Ronquillo, Humberto L."]
[Black "Miszler, Levente"]
[WhiteFideId "3504239"]
[BlackFideId "763276"]
[WhiteElo "2423"]
[BlackElo "1966"]
[Result "1-0"]
[Round "08"]
[TimeControl "180+1"]
[Date "2022.07.26"]
[WhiteClock "0:00:34"]
[BlackClock "0:00:03"]

1. e4 {[%clk 0:03:00]}  e6 {[%clk 0:02:56]} 2. d4 {[%clk 0:02:59]}  d5 {[%clk 0:02:54]} 3. Nd2 {[%clk 0:03:00]}  e5 {[%clk 0:02:53]} 4. dxe5 {[%clk 0:02:48]}  dxe4 {[%clk 0:02:51]} 5. Bc4 {[%clk 0:02:24]}  Nc6 {[%clk 0:02:40]} 6. Qe2 {[%clk 0:01:24]}  Nxe5 {[%clk 0:02:27]} 7. Nxe4 {[%clk 0:01:18]}  Qe7 {[%clk 0:02:21]} 8. Bb3 {[%clk 0:01:12]}  Bd7 {[%clk 0:02:18]} 9. Bg5 {[%clk 0:01:10]}  f6 {[%clk 0:02:15]} 10. Be3 {[%clk 0:01:08]}  Bc6 {[%clk 0:01:47]} 11. Bc5 {[%clk 0:00:55]}  Qd7 {[%clk 0:01:47]} 12. Rd1 {[%clk 0:00:54]}  Qg4 {[%clk 0:01:17]} 13. f3 {[%clk 0:00:53]}  Qg6 {[%clk 0:01:17]} 14. Bxf8 {[%clk 0:00:53]}  Kxf8 {[%clk 0:01:17]} 15. Nc5 {[%clk 0:00:52]}  Rc8 {[%clk 0:00:50]} 16. Nh3 {[%clk 0:00:50]}  Ne7 {[%clk 0:00:34]} 17. Nf4 {[%clk 0:00:45]}  Qh6 {[%clk 0:00:33]} 18. O-O {[%clk 0:00:42]}  b6 {[%clk 0:00:19]} 19. Nfe6+ {[%clk 0:00:41]}  Ke8 {[%clk 0:00:17]} 20. Na6 {[%clk 0:00:42]}  Bb7 {[%clk 0:00:05]} 21. Naxc7+ {[%clk 0:00:41]}  Rxc7 {[%clk 0:00:06]} 22. Nxc7+ {[%clk 0:00:40]}  Kf8 {[%clk 0:00:07]} 23. f4 {[%clk 0:00:40]}  Nf7 {[%clk 0:00:07]} 24. Rd7 {[%clk 0:00:36]}  Nc6 {[%clk 0:00:03]} 25. Qe8# {[%clk 0:00:34]} 1-0


[Site "https://www.chess.com"]

[Event "Titled Tuesday Blitz July 26 Late 2022"]
[White "D`Arruda, Ricardo D."]
[Black "Gracia Alvarez, Gerardo Antonio"]
[WhiteFideId "100692"]
[BlackFideId "5109124"]
[WhiteElo "2408"]
[BlackElo "2139"]
[Result "0-1"]
[Round "08"]
[TimeControl "180+1"]
[Date "2022.07.27"]
[WhiteClock "0:00:04"]
[BlackClock "0:00:06"]

1. Nf3 {[%clk 0:02:56]}  c5 {[%clk 0:02:57]} 2. b3 {[%clk 0:02:56]}  d6 {[%clk 0:02:54]} 3. e3 {[%clk 0:02:55]}  e5 {[%clk 0:02:51]} 4. d4 {[%clk 0:02:51]}  cxd4 {[%clk 0:02:47]} 5. exd4 {[%clk 0:02:52]}  e4 {[%clk 0:02:47]} 6. Nfd2 {[%clk 0:02:52]}  f5 {[%clk 0:02:48]} 7. c4 {[%clk 0:02:49]}  Nf6 {[%clk 0:02:48]} 8. Be2 {[%clk 0:02:47]}  Be7 {[%clk 0:02:43]} 9. O-O {[%clk 0:02:44]}  O-O {[%clk 0:02:44]} 10. Bb2 {[%clk 0:02:42]}  d5 {[%clk 0:02:42]} 11. Nc3 {[%clk 0:02:39]}  Be6 {[%clk 0:02:42]} 12. cxd5 {[%clk 0:02:36]}  Nxd5 {[%clk 0:02:41]} 13. Bc4 {[%clk 0:02:35]}  Kh8 {[%clk 0:02:38]} 14. Nxd5 {[%clk 0:02:25]}  Bxd5 {[%clk 0:02:39]} 15. Bxd5 {[%clk 0:02:25]}  Qxd5 {[%clk 0:02:38]} 16. Nc4 {[%clk 0:02:26]}  Nc6 {[%clk 0:02:37]} 17. Ne3 {[%clk 0:02:21]}  Qd6 {[%clk 0:02:28]} 18. d5 {[%clk 0:02:21]}  Ne5 {[%clk 0:02:28]} 19. Nc4 {[%clk 0:02:07]}  Nxc4 {[%clk 0:02:23]} 20. bxc4 {[%clk 0:02:08]}  Rac8 {[%clk 0:02:22]} 21. Rc1 {[%clk 0:02:05]}  Rfd8 {[%clk 0:02:17]} 22. Qb3 {[%clk 0:01:59]}  b6 {[%clk 0:02:15]} 23. g3 {[%clk 0:01:59]}  Bf6 {[%clk 0:02:14]} 24. Rfd1 {[%clk 0:01:51]}  Bxb2 {[%clk 0:02:12]} 25. Qxb2 {[%clk 0:01:52]}  Rc5 {[%clk 0:02:12]} 26. a4 {[%clk 0:01:42]}  Rdc8 {[%clk 0:02:11]} 27. Qd4 {[%clk 0:01:42]}  h6 {[%clk 0:02:02]} 28. g4 {[%clk 0:01:40]}  Qf4 {[%clk 0:01:56]} 29. gxf5 {[%clk 0:01:35]}  Rf8 {[%clk 0:01:42]} 30. Rc3 {[%clk 0:01:29]}  Rxf5 {[%clk 0:01:31]} 31. Rg3 {[%clk 0:01:29]}  Qe5 {[%clk 0:01:12]} 32. d6 {[%clk 0:01:12]}  Rc8 {[%clk 0:01:00]} 33. Rg4 {[%clk 0:01:04]}  Rh5 {[%clk 0:00:47]} 34. Qxe5 {[%clk 0:00:59]}  Rxe5 {[%clk 0:00:46]} 35. Rd4 {[%clk 0:00:59]}  Rd8 {[%clk 0:00:46]} 36. Kf1 {[%clk 0:00:42]}  Kg8 {[%clk 0:00:38]} 37. Ke2 {[%clk 0:00:41]}  Kf7 {[%clk 0:00:34]} 38. Ke3 {[%clk 0:00:40]}  Re6 {[%clk 0:00:28]} 39. Rf4+ {[%clk 0:00:38]}  Ke8 {[%clk 0:00:20]} 40. Rfxe4 {[%clk 0:00:37]}  Kd7 {[%clk 0:00:18]} 41. Rd5 {[%clk 0:00:30]}  Rxd6 {[%clk 0:00:15]} 42. Kd4 {[%clk 0:00:26]}  Kc6 {[%clk 0:00:13]} 43. Re5 {[%clk 0:00:22]}  R8d7 {[%clk 0:00:13]} 44. f4 {[%clk 0:00:21]}  g6 {[%clk 0:00:11]} 45. h4 {[%clk 0:00:20]}  h5 {[%clk 0:00:11]} 46. Rg5 {[%clk 0:00:20]}  a6 {[%clk 0:00:08]} 47. Re5 {[%clk 0:00:17]}  Kc7 {[%clk 0:00:05]} 48. f5 {[%clk 0:00:17]}  gxf5 {[%clk 0:00:04]} 49. Rxf5 {[%clk 0:00:18]}  Rg7 {[%clk 0:00:03]} 50. Rxh5 {[%clk 0:00:16]}  Rg4+ {[%clk 0:00:03]} 51. Kc3 {[%clk 0:00:17]}  Rxd5 {[%clk 0:00:03]} 52. Rxd5 {[%clk 0:00:10]}  Rxh4 {[%clk 0:00:03]} 53. Rg5 {[%clk 0:00:10]}  Rh3+ {[%clk 0:00:03]} 54. Kb4 {[%clk 0:00:09]}  a5+ {[%clk 0:00:03]} 55. Kb5 {[%clk 0:00:09]}  Rb3+ {[%clk 0:00:04]} 56. Ka6 {[%clk 0:00:10]}  Rb4 {[%clk 0:00:04]} 57. Rg7+ {[%clk 0:00:09]}  Kc6 {[%clk 0:00:05]} 58. Rg6+ {[%clk 0:00:09]}  Kc5 {[%clk 0:00:05]} 59. Rg5+ {[%clk 0:00:04]}  Kxc4 {[%clk 0:00:06]} 0-1


[Site "https://www.chess.com"]

[Event "Titled Tuesday Blitz July 26 Late 2022"]
[White "De Gleria, Francesco"]
[Black "Ljukin, Sergei"]
[WhiteFideId "4630394"]
[BlackFideId "14102200"]
[WhiteElo "2283"]
[BlackElo "2312"]
[Result "1-0"]
[Round "08"]
[TimeControl "180+1"]
[Date "2022.07.27"]
[WhiteClock "0:00:04"]
[BlackClock "0:00:01"]

1. e4 {[%clk 0:02:59]}  e6 {[%clk 0:02:56]} 2. d4 {[%clk 0:02:58]}  d5 {[%clk 0:02:57]} 3. Nd2 {[%clk 0:02:58]}  Nf6 {[%clk 0:02:56]} 4. e5 {[%clk 0:02:58]}  Nfd7 {[%clk 0:02:57]} 5. Bd3 {[%clk 0:02:58]}  c5 {[%clk 0:02:57]} 6. c3 {[%clk 0:02:58]}  Nc6 {[%clk 0:02:58]} 7. Ne2 {[%clk 0:02:59]}  cxd4 {[%clk 0:02:58]} 8. cxd4 {[%clk 0:02:59]}  f6 {[%clk 0:02:58]} 9. Nf4 {[%clk 0:02:55]}  Nxd4 {[%clk 0:02:57]} 10. Qh5+ {[%clk 0:02:55]}  Ke7 {[%clk 0:02:56]} 11. exf6+ {[%clk 0:02:55]}  Nxf6 {[%clk 0:02:56]} 12. Ng6+ {[%clk 0:02:55]}  hxg6 {[%clk 0:02:56]} 13. Qxh8 {[%clk 0:02:55]}  Kf7 {[%clk 0:02:57]} 14. Qh4 {[%clk 0:02:55]}  e5 {[%clk 0:02:55]} 15. Nf3 {[%clk 0:02:54]}  Bb4+ {[%clk 0:02:46]} 16. Kf1 {[%clk 0:02:46]}  e4 {[%clk 0:02:45]} 17. Nxd4 {[%clk 0:02:36]}  exd3 {[%clk 0:02:45]} 18. Be3 {[%clk 0:02:23]}  Bd7 {[%clk 0:02:25]} 19. Nf3 {[%clk 0:02:02]}  Qe7 {[%clk 0:02:03]} 20. Ne5+ {[%clk 0:01:25]}  Qxe5 {[%clk 0:01:48]} 21. Qxb4 {[%clk 0:01:24]}  Rc8 {[%clk 0:01:45]} 22. Rd1 {[%clk 0:01:18]}  Rc2 {[%clk 0:01:40]} 23. h3 {[%clk 0:01:01]}  Rxb2 {[%clk 0:01:32]} 24. Qa3 {[%clk 0:00:40]}  Bb5 {[%clk 0:00:57]} 25. Kg1 {[%clk 0:00:33]}  a6 {[%clk 0:00:54]} 26. h4 {[%clk 0:00:22]}  Rc2 {[%clk 0:00:48]} 27. Rh3 {[%clk 0:00:20]}  d4 {[%clk 0:00:47]} 28. Qb3+ {[%clk 0:00:17]}  Kf8 {[%clk 0:00:39]} 29. Bg5 {[%clk 0:00:16]}  Bc6 {[%clk 0:00:21]} 30. Qb4+ {[%clk 0:00:14]}  Kg8 {[%clk 0:00:20]} 31. Re1 {[%clk 0:00:13]}  Qf5 {[%clk 0:00:17]} 32. Qb3+ {[%clk 0:00:10]}  Bd5 {[%clk 0:00:15]} 33. Qxd3 {[%clk 0:00:10]}  Qxd3 {[%clk 0:00:15]} 34. Rxd3 {[%clk 0:00:10]}  Rxa2 {[%clk 0:00:14]} 35. Rxd4 {[%clk 0:00:10]}  Bc6 {[%clk 0:00:14]} 36. Re7 {[%clk 0:00:09]}  Nh7 {[%clk 0:00:11]} 37. Rd8+ {[%clk 0:00:07]}  Nf8 {[%clk 0:00:11]} 38. Rc7 {[%clk 0:00:05]}  Ra5 {[%clk 0:00:09]} 39. g4 {[%clk 0:00:04]}  Ra3 {[%clk 0:00:08]} 40. f4 {[%clk 0:00:02]}  Ra1+ {[%clk 0:00:07]} 41. Kf2 {[%clk 0:00:02]}  Ra2+ {[%clk 0:00:06]} 42. Ke3 {[%clk 0:00:02]}  Ra3+ {[%clk 0:00:05]} 43. Kd2 {[%clk 0:00:03]}  Ra2+ {[%clk 0:00:04]} 44. Kc3 {[%clk 0:00:03]}  Ra1 {[%clk 0:00:03]} 45. Kb2 {[%clk 0:00:04]}  Re1 {[%clk 0:00:01]} 46. Rcc8 {[%clk 0:00:04]}  Re2+ {[%clk 0:00:01]} 47. Kc3 {[%clk 0:00:04]}  Re3+ {[%clk 0:00:01]} 48. Kd2 {[%clk 0:00:04]} 1-0


[Site "https://www.chess.com"]